fUSD/lending_fUSD_20250402
["ID","MTS","AMOUNT","RATE_DAILY","PERIOD"]
[357034324,1743604308350,-500.0,0.00055342,120]
[357034325,1743604308389,-224.67260072,0.00055342,120]
[357034326,1743604308427,-217.26519335,0.00055342,120]
[357034327,1743604308464,-549.5,0.00055342,120]
[357034328,1743604308502,-500.0,0.00055342,120]
[357034329,1743604308539,-500.0,0.00055342,120]
[357034330,1743604308576,-500.0,0.00055342,120]
[357034331,1743604308614,-500.0,0.00055342,120]
[357034332,1743604308655,-500.0,0.00055342,120]
[357034333,1743604308703,-500.0,0.00055342,120]
[357034334,1743604308745,-500.0,0.00055342,120]
[357034335,1743604308785,-500.0,0.00055342,120]
[357034336,1743604308828,-500.0,0.00055342,120]
[357034337,1743604308871,-500.0,0.00055342,120]
[357034338,1743604308920,-500.0,0.00055342,120]
[357034339,1743604308959,-513.49295615,0.00055342,120]
[357034340,1743604309000,-500.0,0.00055342,120]
[357034341,1743604309041,-500.0,0.00055342,120]
[357034342,1743604309082,-500.0,0.00055342,120]
[357034343,1743604309120,-500.0,0.00055342,120]
[357034344,1743604309163,-500.0,0.00055342,120]
[357034345,1743604309201,-198.47418584,0.00055342,120]
[357034346,1743604309240,-500.0,0.00055342,120]
[357034347,1743604309279,-500.0,0.00055342,120]
[357034348,1743604309317,-500.0,0.00055342,120]
[357034349,1743604309355,-558.5724368,0.00055342,120]
[357034350,1743604309392,-500.0,0.00055342,120]
[357034351,1743604309432,-294.66059561,0.00055342,120]
[357034352,1743604309470,-296.29683125,0.00055342,120]
[357034353,1743604309508,-500.0,0.00055342,120]
[357034354,1743604309543,-500.0,0.00055342,120]
[357034355,1743604309580,-500.0,0.00055342,120]
[357034356,1743604309615,-502.23592759,0.00055342,120]
[357034357,1743604309652,-500.0,0.00055342,120]
[357034358,1743604309689,-519.22948487,0.00055342,120]
[357034359,1743604309726,-500.0,0.00055342,120]
[357034360,1743604309763,-500.0,0.00055342,120]
[357034361,1743604309799,-500.0,0.00055342,120]
[357034362,1743604309837,-377.95243725,0.00055342,120]
[357034363,1743604309874,-500.0,0.00055342,120]
[357034364,1743604309912,-500.0,0.00055342,120]
[357034365,1743604309948,-500.0,0.00055342,120]
[357034366,1743604309982,-500.0,0.00055342,120]
[357034367,1743604310017,-509.81782534,0.00055342,120]
[357034368,1743604310051,-500.0,0.00055342,120]
[357034369,1743604310087,-500.0,0.00055342,120]
[357034370,1743604310122,-500.0,0.00055342,120]
[357034371,1743604310159,-500.0,0.00055342,120]
[357034372,1743604310196,-500.0,0.00055342,120]
[357034373,1743604310235,-256.89759245,0.00055342,120]
[357034374,1743604310271,-296.29326242,0.00055342,120]
[357034375,1743604310413,-513.72919601,0.00055342,120]
[357034376,1743604310453,-500.0,0.00055342,120]
[357034377,1743604310492,-500.0,0.00055342,120]
[357034378,1743604310530,-550.84342175,0.00055342,120]
[357034379,1743604310566,-500.0,0.00055342,120]
[357034380,1743604310602,-500.0,0.00055342,120]
[357034381,1743604310636,-500.0,0.00055342,120]
[357034382,1743604310671,-500.0,0.00055342,120]
[357034383,1743604310706,-500.0,0.00055342,120]
[357034384,1743604310740,-500.0,0.00055342,120]
[357034385,1743604310775,-500.0,0.00055342,120]
[357034386,1743604310811,-498.3007,0.00055342,120]
[357034387,1743604310845,-523.51174639,0.00055342,120]
[357034388,1743604310880,-500.0,0.00055342,120]
[357034389,1743604310914,-500.0,0.00055342,120]
[357034390,1743604310949,-500.0,0.00055342,120]
[357034391,1743604310984,-500.0,0.00055342,120]
[357034392,1743604311019,-500.0,0.00055342,120]
[357034393,1743604311052,-533.89754409,0.00055342,120]
[357034394,1743604311086,-153.79919058,0.00055342,120]
[357034395,1743604311119,-500.0,0.00055342,120]
[357034396,1743604311154,-516.37544949,0.00055342,120]
[357034397,1743604311192,-500.0,0.00055342,120]
[357034398,1743604311229,-500.0,0.00055342,120]
[357034399,1743604311264,-500.0,0.00055342,120]
[357034400,1743604311300,-500.0,0.00055342,120]
[357034401,1743604311334,-500.0,0.00055342,120]
[357034402,1743604311375,-449.89315644,0.00055342,120]
[357034403,1743604311413,-500.0,0.00055342,120]
[357034404,1743604311449,-500.0,0.00055342,120]
[357034405,1743604311486,-500.0,0.00055342,120]
[357034406,1743604311521,-500.0,0.00055342,120]
[357034407,1743604311555,-500.0,0.00055342,120]
[357034408,1743604311590,-500.0,0.00055342,120]
[357034409,1743604311624,-500.0,0.00055342,120]
[357034410,1743604311659,-500.0,0.00055342,120]
[357034411,1743604311693,-500.0,0.00055342,120]
[357034412,1743604311726,-500.0,0.00055342,120]
[357034413,1743604311760,-516.01485811,0.00055342,120]
[357034414,1743604311794,-519.93558789,0.00055342,120]
[357034415,1743604311835,-500.0,0.00055342,120]
[357034416,1743604311871,-500.0,0.00055342,120]
[357034417,1743604311906,-536.89527187,0.00055342,120]
[357034418,1743604311942,-500.0,0.00055342,120]
[357034419,1743604311978,-1410.46,0.00055342,120]
[357034420,1743604312013,-500.0,0.00055342,120]
[357034421,1743604312048,-374.11819707,0.00055342,120]
[357034422,1743604312084,-500.0,0.00055342,120]
[357034423,1743604312119,-500.0,0.00055342,120]
[357034424,1743604312154,-500.0,0.00055342,120]
[357034425,1743604312192,-500.0,0.00055342,120]
[357034426,1743604312227,-500.0,0.00055342,120]
[357034427,1743604312261,-487.47845919,0.00055342,120]
[357034428,1743604312296,-520.26992325,0.00055342,120]
[357034429,1743604312332,-500.0,0.00055342,120]
[357034430,1743604312367,-196.24154658,0.00055342,120]
[357034431,1743604312401,-500.0,0.00055342,120]
[357034432,1743604312436,-500.0,0.00055342,120]
[357034433,1743604312470,-502.68,0.00055342,120]
[357034434,1743604312504,-500.0,0.00055342,120]
[357034435,1743604312539,-500.0,0.00055342,120]
[357034436,1743604312574,-500.0,0.00055342,120]
[357034437,1743604312608,-500.0,0.00055342,120]
[357034438,1743604312643,-500.0,0.00055342,120]
[357034439,1743604312679,-500.0,0.00055342,120]
[357034440,1743604312713,-500.0,0.00055342,120]
[357034441,1743604312748,-500.0,0.00055342,120]
[357034442,1743604312783,-500.0,0.00055342,120]
[357034443,1743604312817,-529.16956054,0.00055342,120]
[357034444,1743604312851,-500.0,0.00055342,120]
[357034445,1743604312890,-500.0,0.00055342,120]
[357034446,1743604312924,-500.0,0.00055342,120]
[357034447,1743604312957,-500.0,0.00055342,120]
[357034448,1743604312991,-500.0,0.00055342,100]
[357034449,1743604313026,-530.05405339,0.00055342,120]
[357034450,1743604313063,-500.0,0.00055342,120]
[357034451,1743604313098,-410.31938182,0.00055342,120]
[357034452,1743604313134,-500.0,0.00055342,120]
[357034453,1743604313171,-500.0,0.00055342,120]
[357034454,1743604313208,-5246.61,0.00055342,120]
[357034455,1743604313244,-500.0,0.00055342,120]
[357034456,1743604313281,-500.0,0.00055342,120]
[357034457,1743604313423,-500.0,0.00055342,120]
[357034458,1743604313463,-500.0,0.00055342,120]
[357034459,1743604313502,-500.0,0.00055342,120]
[357034460,1743604313540,-500.0,0.00055342,120]
[357034461,1743604313576,-500.0,0.00055342,120]
[357034462,1743604313614,-500.0,0.00055342,120]
[357034463,1743604313649,-500.0,0.00055342,30]
[357034464,1743604313689,-401.30015557,0.00055342,120]
[357034465,1743604313725,-500.0,0.00055342,120]
[357034466,1743604313763,-172.27679054,0.00055342,120]
[357034467,1743604313799,-500.0,0.00055342,120]
[357034468,1743604313837,-500.0,0.00055342,120]
[357034469,1743604313873,-517.85185099,0.00055342,120]
[357034470,1743604313908,-1181.33,0.00055342,120]
[357034471,1743604313944,-500.0,0.00055342,120]
[357034472,1743604313978,-500.0,0.00055342,120]
[357034473,1743604314014,-500.0,0.00055342,120]
[357034474,1743604314050,-500.0,0.00055342,120]
[357034475,1743604314085,-884.05,0.00055342,120]
[357034476,1743604314122,-500.0,0.00055342,120]
[357034477,1743604314157,-510.90440131,0.00055342,120]
[357034478,1743604314196,-500.0,0.00055342,120]
[357034479,1743604314232,-500.0,0.00055342,120]
[357034480,1743604314267,-500.0,0.00055342,120]
[357034481,1743604314305,-516.10273469,0.00055342,120]
[357034482,1743604314342,-529.6200579,0.00055342,120]
[357034483,1743604314379,-500.0,0.00055342,120]
[357034484,1743604314418,-500.0,0.00055342,120]
[357034485,1743604314457,-500.0,0.00055342,120]
[357034486,1743604314493,-2500.0,0.00055342,120]
[357034487,1743604314532,-577.93901767,0.00055342,120]
[357034488,1743604314570,-500.0,0.00055342,120]
[357034489,1743604314607,-500.0,0.00055342,120]
[357034490,1743604314644,-500.0,0.00055342,120]
[357034491,1743604314682,-500.0,0.00055342,120]
[357034492,1743604314719,-500.0,0.00055342,120]
[357034493,1743604314757,-500.0,0.00055342,120]
[357034494,1743604314792,-500.0,0.00055342,120]
[357034495,1743604314831,-302.0,0.00055387,30]
[357034496,1743604314867,-3894.401,0.00055561,120]
[357034497,1743604314903,-622.06687281,0.0005589,120]
[357034498,1743604314940,-500.0,0.0005589,120]
[357034499,1743604314977,-547.76363648,0.0005589,120]
[357034500,1743604315014,-359.1061262,0.0005589,120]
[357034501,1743604315050,-500.0,0.0005589,120]
[357034502,1743604315085,-208.95401587,0.0005589,120]
[357034503,1743604315120,-500.0,0.0005589,120]
[357034504,1743604315156,-526.12697398,0.0005589,120]
[357034505,1743604315195,-264.04665979,0.0005589,120]
[357034506,1743604315232,-532.35112414,0.0005589,120]
[357034507,1743604315268,-500.0,0.0005589,120]
[357034508,1743604315305,-500.0,0.0005589,120]
[357034509,1743604315344,-500.0,0.0005589,120]
[357034510,1743604315380,-500.0,0.0005589,120]
[357034511,1743604315420,-521.42069837,0.0005589,120]
[357034512,1743604315457,-315.7970843,0.0005589,120]
[357034513,1743604315492,-535.3950114,0.0005589,120]
[357034514,1743604315528,-500.0,0.0005589,120]
[357034515,1743604315565,-500.0,0.0005589,120]
[357034516,1743604315602,-511.32271853,0.0005589,120]
[357034517,1743604315636,-500.0,0.0005589,120]
[357034518,1743604315672,-500.0,0.0005589,120]
[357034519,1743604315708,-500.0,0.0005589,120]
[357034520,1743604315745,-500.0,0.0005589,120]
[357034521,1743604315780,-500.0,0.0005589,120]
[357034522,1743604315817,-500.0,0.0005589,30]
[357034523,1743604315852,-500.0,0.0005589,120]
[357034524,1743604315887,-532.79111091,0.0005589,120]
[357034525,1743604315922,-500.0,0.0005589,120]
[357034526,1743604315958,-517.73348955,0.0005589,120]
[357034527,1743604316000,-493.6847501,0.0005589,120]
[357034528,1743604316043,-518.56868237,0.0005589,120]
[357034529,1743604316085,-500.0,0.0005589,120]
[357034530,1743604316129,-365.35688077,0.0005589,120]
[357034531,1743604316174,-500.0,0.0005589,120]
[357034532,1743604316217,-521.04855142,0.0005589,120]
[357034533,1743604316261,-500.0,0.0005589,120]
[357034534,1743604316304,-500.0,0.0005589,120]
[357034535,1743604316349,-500.0,0.0005589,120]
[357034536,1743604316489,-500.0,0.0005589,120]
[357034537,1743604316526,-300.0,0.0005589,120]
[357034538,1743604316562,-500.0,0.0005589,120]
[357034539,1743604316598,-500.0,0.0005589,120]
[357034540,1743604316634,-500.0,0.0005589,120]
[357034541,1743604316669,-500.0,0.0005589,120]
[357034542,1743604316705,-536.92485992,0.0005589,120]
[357034543,1743604316739,-500.0,0.0005589,120]
[357034544,1743604316774,-500.0,0.0005589,120]
[357034545,1743604316813,-523.95446343,0.0005589,120]
[357034546,1743604316855,-500.0,0.0005589,120]
[357034547,1743604316897,-500.0,0.0005589,120]
[357034548,1743604316939,-500.0,0.0005589,120]
[357034549,1743604316974,-500.0,0.0005589,120]
[357034550,1743604317011,-517.34876786,0.0005589,120]
[357034551,1743604317048,-172.42481433,0.0005589,120]
[357034552,1743604317086,-510.78205389,0.0005589,120]
[357034553,1743604317121,-500.0,0.0005589,120]
[357034554,1743604317157,-532.0998696,0.0005589,120]
[357034555,1743604317193,-514.73643424,0.0005589,120]
[357034556,1743604317230,-500.0,0.0005589,120]
[357034557,1743604317265,-500.0,0.0005589,120]
[357034558,1743604317300,-500.0,0.0005589,120]
[357034559,1743604317336,-500.0,0.0005589,120]
[357034560,1743604317371,-527.89798406,0.0005589,120]
[357034561,1743604317408,-500.0,0.0005589,120]
[357034562,1743604317445,-500.0,0.0005589,120]
[357034563,1743604317480,-514.44099147,0.0005589,120]
[357034564,1743604317514,-500.0,0.0005589,120]
[357034565,1743604317547,-500.0,0.0005589,120]
[357034566,1743604317581,-223.84338296,0.0005589,120]
[357034567,1743604317614,-569.63092287,0.0005589,120]
[357034568,1743604317647,-500.0,0.0005589,120]
[357034569,1743604317681,-500.0,0.0005589,120]
[357034570,1743604317713,-500.0,0.0005589,120]
[357034571,1743604317747,-500.0,0.0005589,120]
[357034572,1743604317780,-507.62457537,0.0005589,120]
[357034573,1743604317817,-500.0,0.0005589,120]
[357034574,1743604317851,-500.0,0.0005589,120]
[357034575,1743604317884,-500.0,0.0005589,120]
[357034576,1743604317920,-500.0,0.0005589,120]
[357034577,1743604317954,-500.0,0.0005589,120]
[357034578,1743604317990,-500.0,0.0005589,120]
[357034579,1743604318024,-444.23686461,0.0005589,120]
[357034580,1743604318058,-500.0,0.0005589,120]
[357034581,1743604318093,-500.0,0.0005589,120]
[357034582,1743604318127,-500.0,0.0005589,120]
[357034583,1743604318160,-514.18583774,0.0005589,120]
[357034584,1743604318198,-500.0,0.0005589,120]
[357034585,1743604318234,-507.14462302,0.0005589,120]
[357034586,1743604318270,-512.3619742,0.0005589,120]
[357034587,1743604318308,-500.0,0.0005589,120]
[357034588,1743604318343,-500.0,0.0005589,120]
[357034589,1743604318379,-495.32315902,0.0005589,120]
[357034590,1743604318417,-500.0,0.0005589,120]
[357034591,1743604318454,-500.0,0.0005589,120]
[357034592,1743604318491,-500.0,0.0005589,120]
[357034593,1743604318528,-512.20766266,0.0005589,120]
[357034594,1743604318565,-500.0,0.0005589,120]
[357034595,1743604318601,-500.0,0.0005589,120]
[357034596,1743604318637,-500.0,0.0005589,120]
[357034597,1743604318675,-500.0,0.0005589,120]
[357034598,1743604318711,-500.0,0.0005589,120]
[357034599,1743604318745,-500.0,0.0005589,120]
[357034600,1743604318781,-500.0,0.0005589,120]
[357034601,1743604318815,-500.0,0.0005589,120]
[357034602,1743604318850,-500.0,0.0005589,120]
[357034603,1743604318883,-500.0,0.0005589,30]
[357034604,1743604318918,-500.0,0.0005589,120]
[357034605,1743604318952,-495.10037449,0.0005589,120]
[357034606,1743604318990,-532.37904831,0.0005589,60]
[357034607,1743604319026,-500.0,0.0005589,120]
[357034608,1743604319062,-279.12756218,0.0005589,120]
[357034609,1743604319103,-500.0,0.0005589,120]
[357034610,1743604319145,-167.35992622,0.0005589,120]
[357034611,1743604319187,-500.0,0.0005589,120]
[357034612,1743604319227,-503.39425157,0.0005589,120]
[357034613,1743604319386,-150.0,0.0005589,120]
[357034614,1743604319436,-500.0,0.0005589,120]
[357034615,1743604319477,-500.0,0.0005589,120]
[357034616,1743604319516,-519.63771871,0.0005589,120]
[357034617,1743604319556,-535.37502158,0.0005589,120]
[357034618,1743604319596,-500.0,0.0005589,120]
[357034619,1743604319633,-500.0,0.0005589,120]
[357034620,1743604319670,-500.0,0.0005589,120]
[357034621,1743604319706,-593.41,0.0005589,120]
[357034622,1743604319743,-500.0,0.0005589,120]
[357034623,1743604319778,-500.0,0.0005589,120]
[357034624,1743604319814,-530.69156695,0.0005589,120]
[357034625,1743604319850,-315.0491747,0.0005589,120]
[357034626,1743604319889,-500.0,0.0005589,120]
[357034627,1743604319927,-500.0,0.0005589,120]
[357034628,1743604319962,-500.0,0.0005589,120]
[357034629,1743604319998,-500.0,0.0005589,120]
[357034630,1743604320038,-549.5,0.0005589,120]
[357034631,1743604320075,-522.24677196,0.0005589,120]
[357034632,1743604320113,-500.0,0.0005589,120]
[357034633,1743604320150,-500.0,0.0005589,120]
[357034634,1743604320190,-500.0,0.0005589,120]
[357034635,1743604320230,-537.29602329,0.0005589,120]
[357034636,1743604320269,-534.64002337,0.0005589,120]
[357034637,1743604320308,-500.0,0.0005589,120]
[357034638,1743604320348,-500.0,0.0005589,120]
[357034639,1743604320386,-552.99847431,0.0005589,120]
[357034640,1743604320426,-500.0,0.0005589,120]
[357034641,1743604320467,-500.0,0.0005589,120]
[357034642,1743604320508,-157.12,0.0005589,120]
[357034643,1743604320547,-500.0,0.0005589,120]
[357034644,1743604320585,-500.0,0.0005589,120]
[357034645,1743604320623,-500.0,0.0005589,120]
[357034646,1743604320658,-500.0,0.0005589,120]
[357034647,1743604320696,-500.0,0.0005589,120]
[357034648,1743604320733,-500.0,0.0005589,120]
[357034649,1743604320771,-500.0,0.0005589,120]
[357034650,1743604320809,-500.0,0.0005589,120]
[357034651,1743604320846,-500.0,0.0005589,120]
[357034652,1743604320882,-500.0,0.0005589,120]
[357034653,1743604320919,-500.0,0.0005589,120]
[357034654,1743604320955,-500.0,0.0005589,120]
[357034655,1743604320991,-253.75221488,0.0005589,120]
[357034656,1743604321028,-539.98727127,0.0005589,120]
[357034657,1743604321067,-500.0,0.0005589,120]
[357034658,1743604321106,-500.0,0.0005589,120]
[357034659,1743604321144,-500.0,0.0005589,120]
[357034660,1743604321180,-500.0,0.0005589,120]
[357034661,1743604321230,-500.0,0.0005589,120]
[357034662,1743604321271,-500.0,0.0005589,120]
[357034663,1743604321310,-500.0,0.0005589,120]
[357034664,1743604321350,-500.0,0.0005589,120]
[357034665,1743604321389,-500.0,0.0005589,120]
[357034666,1743604321428,-500.0,0.0005589,120]
[357034667,1743604321467,-500.0,0.0005589,120]
[357034668,1743604321506,-500.0,0.0005589,120]
[357034669,1743604321545,-500.0,0.0005589,120]
[357034670,1743604321582,-500.0,0.0005589,120]
[357034671,1743604321624,-500.0,0.0005589,120]
[357034672,1743604321667,-500.0,0.0005589,120]
[357034673,1743604321710,-500.0,0.0005589,120]
[357034674,1743604321748,-1410.46,0.0005589,120]
[357034675,1743604321786,-500.0,0.0005589,120]
[357034676,1743604321828,-500.0,0.0005589,120]
[357034677,1743604321870,-500.0,0.0005589,120]
[357034678,1743604321910,-500.0,0.0005589,120]
[357034679,1743604321951,-500.0,0.0005589,120]
[357034680,1743604321991,-500.0,0.0005589,120]
[357034681,1743604322029,-502.68,0.0005589,120]
[357034682,1743604322065,-500.0,0.0005589,120]
[357034683,1743604322101,-500.0,0.0005589,120]
[357034684,1743604322138,-500.0,0.0005589,120]
[357034685,1743604322175,-500.0,0.0005589,120]
[357034686,1743604322212,-500.0,0.0005589,120]
[357034687,1743604322368,-500.0,0.0005589,120]
[357034688,1743604322408,-500.0,0.0005589,120]
[357034689,1743604322446,-500.0,0.0005589,120]
[357034690,1743604322487,-500.0,0.0005589,120]
[357034691,1743604322522,-500.0,0.0005589,100]
[357034692,1743604322566,-500.0,0.0005589,120]
[357034693,1743604322605,-500.0,0.0005589,120]
[357034694,1743604322642,-174.9901063,0.0005589,120]
[357034695,1743604322680,-5246.61,0.0005589,120]
[357034696,1743604322721,-500.0,0.0005589,120]
[357034697,1743604322756,-500.0,0.0005589,120]
[357034698,1743604322794,-500.0,0.0005589,120]
[357034699,1743604322834,-500.0,0.0005589,120]
[357034700,1743604322874,-164.76604577,0.0005589,120]
[357034701,1743604322914,-500.0,0.0005589,120]
[357034702,1743604322954,-500.0,0.0005589,120]
[357034703,1743604322993,-500.0,0.0005589,120]
[357034704,1743604323030,-500.0,0.0005589,30]
[357034705,1743604323069,-500.0,0.0005589,120]
[357034706,1743604323108,-500.0,0.0005589,120]
[357034707,1743604323147,-500.0,0.0005589,120]
[357034708,1743604323186,-1181.33,0.0005589,120]
[357034709,1743604323226,-500.0,0.0005589,120]
[357034710,1743604323269,-500.0,0.0005589,120]
[357034711,1743604323310,-884.05,0.0005589,120]
[357034712,1743604323352,-500.0,0.0005589,120]
[357034713,1743604323392,-500.0,0.0005589,120]
[357034714,1743604323434,-500.0,0.0005589,120]
[357034715,1743604323475,-529.29771469,0.0005589,120]
[357034716,1743604323515,-2500.0,0.0005589,120]
[357034717,1743604323555,-500.0,0.0005589,120]
[357034718,1743604323595,-521.58132593,0.0005589,120]
[357034719,1743604323635,-500.0,0.0005589,120]
[357034720,1743604323678,-532.70781538,0.0005589,120]
[357034721,1743604323717,-500.0,0.0005589,120]
[357034722,1743604323757,-500.0,0.0005589,120]
[357034723,1743604323797,-302.0,0.00055958,30]
[357034724,1743604323843,-5400.22462051,0.00056,120]
[357034725,1743604323885,-158.36,0.00056156,120]
[357034726,1743604323932,-152.79,0.000564,57]
[357034727,1743604323979,-152.79,0.000564,57]
[357034728,1743604324017,-526.22067797,0.00056438,120]
[357034729,1743604324054,-500.0,0.00056438,120]
[357034730,1743604324092,-500.0,0.00056438,120]
[357034731,1743604324131,-500.0,0.00056438,120]
[357034732,1743604324172,-538.22097524,0.00056438,120]
[357034733,1743604324210,-401.30341528,0.00056438,120]
[357034734,1743604324249,-500.0,0.00056438,120]
[357034735,1743604324288,-243.14912457,0.00056438,120]
[357034736,1743604324328,-500.0,0.00056438,120]
[357034737,1743604324368,-154.4004717,0.00056438,120]
[357034738,1743604324408,-500.0,0.00056438,120]
[357034739,1743604324448,-500.0,0.00056438,120]
[357034740,1743604324486,-500.0,0.00056438,30]
[357034741,1743604324524,-500.0,0.00056438,120]
[357034742,1743604324562,-500.0,0.00056438,120]
[357034743,1743604324600,-481.05106884,0.00056438,120]
[357034744,1743604324639,-500.0,0.00056438,120]
[357034745,1743604324677,-500.0,0.00056438,120]
[357034746,1743604324716,-513.94163217,0.00056438,120]
[357034747,1743604324754,-516.59261558,0.00056438,120]
[357034748,1743604324791,-331.69510462,0.00056438,120]
[357034749,1743604324831,-511.53378942,0.00056438,120]
[357034750,1743604324868,-500.0,0.00056438,120]
[357034751,1743604324904,-500.0,0.00056438,120]
[357034752,1743604324942,-500.0,0.00056438,120]
[357034753,1743604324979,-500.0,0.00056438,120]
[357034754,1743604325017,-500.0,0.00056438,120]
[357034755,1743604325054,-500.0,0.00056438,120]
[357034756,1743604325091,-361.39596631,0.00056438,120]
[357034757,1743604325130,-500.0,0.00056438,120]
[357034758,1743604325168,-500.0,0.00056438,120]
[357034759,1743604325305,-519.32000097,0.00056438,120]
[357034760,1743604325346,-500.0,0.00056438,120]
[357034761,1743604325384,-474.04832892,0.00056438,120]
[357034762,1743604325426,-512.05289784,0.00056438,120]
[357034763,1743604325463,-500.0,0.00056438,120]
[357034764,1743604325501,-521.94123578,0.00056438,120]
[357034765,1743604325537,-500.0,0.00056438,120]
[357034766,1743604325575,-605.54465617,0.00056438,120]
[357034767,1743604325611,-500.0,0.00056438,120]
[357034768,1743604325646,-500.0,0.00056438,120]
[357034769,1743604325682,-500.0,0.00056438,120]
[357034770,1743604325719,-500.0,0.00056438,120]
[357034771,1743604325755,-519.68514276,0.00056438,120]
[357034772,1743604325790,-500.0,0.00056438,120]
[357034773,1743604325827,-500.0,0.00056438,120]
[357034774,1743604325862,-528.94669321,0.00056438,120]
[357034775,1743604325899,-406.47675544,0.00056438,120]
[357034776,1743604325935,-522.68101669,0.00056438,120]
[357034777,1743604325973,-529.56851602,0.00056438,120]
[357034778,1743604326010,-526.18281206,0.00056438,120]
[357034779,1743604326047,-500.0,0.00056438,120]
[357034780,1743604326083,-500.0,0.00056438,30]
[357034781,1743604326121,-500.0,0.00056438,120]
[357034782,1743604326158,-500.0,0.00056438,120]
[357034783,1743604326198,-150.0,0.00056438,120]
[357034784,1743604326236,-534.39231035,0.00056438,120]
[357034785,1743604326274,-598.24027712,0.00056438,120]
[357034786,1743604326310,-500.0,0.00056438,120]
[357034787,1743604326347,-500.0,0.00056438,120]
[357034788,1743604326383,-593.41,0.00056438,120]
[357034789,1743604326418,-500.0,0.00056438,120]
[357034790,1743604326457,-500.0,0.00056438,120]
[357034791,1743604326493,-500.0,0.00056438,120]
[357034792,1743604326530,-500.0,0.00056438,120]
[357034793,1743604326564,-496.58142,0.00056438,120]
[357034794,1743604326600,-500.0,0.00056438,120]
[357034795,1743604326635,-549.5,0.00056438,120]
[357034796,1743604326671,-500.0,0.00056438,120]
[357034797,1743604326708,-500.0,0.00056438,120]
[357034798,1743604326743,-531.10846737,0.00056438,120]
[357034799,1743604326778,-500.0,0.00056438,120]
[357034800,1743604326816,-500.0,0.00056438,120]
[357034801,1743604326853,-500.0,0.00056438,120]
[357034802,1743604326890,-500.0,0.00056438,120]
[357034803,1743604326927,-500.0,0.00056438,120]
[357034804,1743604326963,-500.0,0.00056438,120]
[357034805,1743604326998,-529.45339164,0.00056438,120]
[357034806,1743604327035,-500.0,0.00056438,120]
[357034807,1743604327069,-500.0,0.00056438,120]
[357034808,1743604327104,-500.0,0.00056438,120]
[357034809,1743604327140,-500.0,0.00056438,120]
[357034810,1743604327177,-500.0,0.00056438,120]
[357034811,1743604327214,-500.0,0.00056438,120]
[357034812,1743604327249,-500.0,0.00056438,120]
[357034813,1743604327286,-500.0,0.00056438,120]
[357034814,1743604327321,-500.0,0.00056438,120]
[357034815,1743604327357,-500.0,0.00056438,120]
[357034816,1743604327392,-500.0,0.00056438,120]
[357034817,1743604327430,-500.0,0.00056438,120]
[357034818,1743604327468,-500.0,0.00056438,120]
[357034819,1743604327506,-500.0,0.00056438,120]
[357034820,1743604327542,-500.0,0.00056438,120]
[357034821,1743604327580,-500.0,0.00056438,120]
[357034822,1743604327616,-500.0,0.00056438,120]
[357034823,1743604327651,-500.0,0.00056438,120]